fUST/lending_fUST_20250626
["ID","MTS","AMOUNT","RATE_DAILY","PERIOD"]
[367825016,1750937261576,-151.0,0.00022,7]
[367825017,1750937261599,-151.0,0.00022,7]
[367825018,1750937261623,-290.31129,0.00022,7]
[367825019,1750937261648,-284.36487,0.00022,7]
[367825020,1750937261672,-284.36487,0.00022,7]
[367825021,1750937261696,-284.36487,0.00022,7]
[367825022,1750937261719,-284.36487,0.00022,7]
[367825023,1750937261742,-151.0,0.00022,7]
[367825024,1750937261765,-151.0,0.00022,7]
[367825025,1750937261789,-151.0,0.00022,7]
[367825026,1750937261816,-151.0,0.00022,7]
[367825027,1750937261840,-151.0,0.00022,7]
[367825028,1750937261863,-248.284644,0.00022,7]
[367825029,1750937261888,-1002.59102929,0.00022,10]
[367825030,1750937261913,-151.0,0.00022,7]
[367825031,1750937261938,-151.0,0.00022,7]
[367825032,1750937261962,-151.0,0.00022,7]
[367825033,1750937261987,-282.952214,0.00022,7]
[367825034,1750937262012,-151.0,0.00022,7]
[367825035,1750937262035,-151.0,0.00022,7]
[367825036,1750937262060,-151.0,0.00022,7]
[367825037,1750937262084,-151.0,0.00022,7]
[367825038,1750937262108,-151.0,0.00022,7]
[367825039,1750937262132,-151.0,0.00022,7]
[367825040,1750937262156,-151.0,0.00022,7]
[367825041,1750937262181,-151.0,0.00022,7]
[367825042,1750937262204,-151.0,0.00022,7]
[367825043,1750937262227,-151.0,0.00022,7]
[367825044,1750937262252,-197.076694,0.00022,7]
[367825045,1750937262275,-197.076694,0.00022,7]
[367825046,1750937262300,-197.076694,0.00022,7]
[367825047,1750937262325,-197.076694,0.00022,7]
[367825048,1750937262348,-151.0,0.00022,7]
[367825049,1750937262372,-151.0,0.00022,7]
[367825050,1750937262396,-151.0,0.00022,7]
[367825051,1750937262420,-169.465157,0.00022,7]
[367825052,1750937262445,-151.0,0.00022,7]
[367825053,1750937262468,-218.496388,0.00022,7]
[367825054,1750937262492,-820.672992,0.00022,7]
[367825055,1750937262516,-820.672992,0.00022,7]
[367825056,1750937262540,-820.672992,0.00022,7]
[367825057,1750937262565,-820.672992,0.00022,7]
[367825058,1750937262589,-151.0,0.00022,7]
[367825059,1750937262614,-151.0,0.00022,7]
[367825060,1750937262638,-12560.17507789,0.00022,7]
[367825061,1750937262663,-151.0,0.00022,7]
[367825062,1750937262688,-151.0,0.00022,7]
[367825063,1750937262712,-151.0,0.00022,7]
[367825064,1750937262737,-151.0,0.00022,7]
[367825065,1750937262902,-151.0,0.00022,7]
[367825066,1750937262927,-239.24165,0.00022,7]
[367825067,1750937262952,-846.92323443,0.00022,7]
[367825068,1750937262977,-151.0,0.00022,7]
[367825069,1750937263001,-151.0,0.00022,7]
[367825070,1750937263025,-151.0,0.00022,5]
[367825071,1750937263048,-213.72380786,0.00022,7]
[367825072,1750937263072,-151.0,0.00022,7]
[367825073,1750937263097,-151.0,0.00022,7]
[367825074,1750937263120,-160.0,0.00022,7]
[367825075,1750937263145,-151.0,0.00022,7]
[367825076,1750937263169,-285.645974,0.00022,7]
[367825077,1750937263194,-226.920011,0.00022,7]
[367825078,1750937263218,-226.920011,0.00022,7]
[367825079,1750937263243,-226.920011,0.00022,7]
[367825080,1750937263268,-226.920011,0.00022,7]
[367825081,1750937263299,-2242.70531674,0.00022003,6]
[367825082,1750937263324,-152.36191,0.00022004,7]
[367825083,1750937263348,-151.0,0.00022004,7]
[367825084,1750937263371,-151.0,0.00022004,7]
[367825085,1750937263396,-197.076694,0.00022004,7]
[367825086,1750937263420,-197.076694,0.00022004,7]
[367825087,1750937263445,-151.0,0.00022004,7]
[367825088,1750937263471,-226.920011,0.00022004,7]
[367825089,1750937263496,-226.920011,0.00022004,7]
[367825090,1750937263520,-151.0,0.00022076,7]
[367825091,1750937263545,-151.0,0.00022076,7]
[367825092,1750937263569,-160.0,0.00022076,5]
[367825093,1750937263593,-820.672992,0.000221,7]
[367825094,1750937263617,-820.672992,0.000221,7]
[367825095,1750937263642,-151.0,0.000221,7]
[367825096,1750937263666,-151.0,0.000221,7]
[367825097,1750937263690,-200.0,0.0002212,5]
[367825098,1750937263714,-151.0,0.00022141,7]
[367825099,1750937263740,-284.36487,0.00022191,7]
[367825100,1750937263765,-284.36487,0.00022191,7]
[367825101,1750937263789,-500.0,0.00022191,18]
[367825102,1750937263816,-151.0,0.00022191,7]
[367825103,1750937263850,-2242.70531674,0.00022245,6]
[367825104,1750937263877,-151.0,0.00022245,7]
[367825105,1750937263905,-151.0,0.00022245,7]
[367825106,1750937263929,-151.0,0.0002233,7]
[367825107,1750937263954,-152.005502,0.00022343,7]
[367825108,1750937263979,-282.952214,0.00022343,7]
[367825109,1750937264004,-151.0,0.00022343,7]
[367825110,1750937264030,-252.11651,0.00022343,7]
[367825111,1750937264056,-4851.0,0.000224,6]
[367825112,1750937264081,-151.0,0.000224,7]
[367825113,1750937264105,-151.0,0.000224,7]
[367825114,1750937264130,-151.0,0.000224,7]
[367825115,1750937264156,-151.0,0.000224,7]
[367825116,1750937264188,-2242.70531674,0.00022486,7]
[367825117,1750937264212,-10239.81463352,0.000225,15]
[367825118,1750937264237,-160.0,0.000225,6]
[367825119,1750937264260,-161.69834764,0.000225,5]
[367825120,1750937264286,-500.0,0.00022602,19]
[367825121,1750937264310,-151.0,0.00022655,7]
[367825122,1750937264334,-151.0,0.00022655,7]
[367825123,1750937264359,-197.076694,0.00022655,7]
[367825124,1750937264385,-197.076694,0.00022655,7]
[367825125,1750937264410,-1331.745922,0.0002268,5]
[367825126,1750937264434,-15671.92,0.000227,7]
[367825127,1750937264459,-4231.41,0.000227,7]
[367825128,1750937264484,-151.0,0.000227,7]
[367825129,1750937264509,-1000.0,0.000227,5]
[367825130,1750937264532,-1000.0,0.0002272,5]
[367825131,1750937264561,-2242.70531674,0.00022728,7]
[367825132,1750937264588,-1000.0,0.0002274,5]
[367825133,1750937264613,-151.0,0.00022755,7]
[367825134,1750937264638,-151.0,0.00022755,7]
[367825135,1750937264663,-151.0,0.00022755,7]
[367825136,1750937264688,-151.0,0.00022755,7]
[367825137,1750937264712,-151.0,0.00022755,7]
[367825138,1750937264737,-284.36487,0.00022755,7]
[367825139,1750937264762,-284.36487,0.00022755,7]
[367825140,1750937264787,-151.0,0.00022755,7]
[367825141,1750937264813,-151.0,0.00022755,7]
[367825142,1750937264839,-282.952214,0.00022755,7]
[367825143,1750937264866,-151.0,0.00022755,7]
[367825144,1750937264892,-151.0,0.00022755,7]
[367825145,1750937264918,-151.0,0.00022755,7]
[367825146,1750937264942,-151.0,0.00022755,7]
[367825147,1750937264965,-152.290045,0.00022755,7]
[367825148,1750937264990,-197.076694,0.00022755,7]
[367825149,1750937265015,-197.076694,0.00022755,7]
[367825150,1750937265040,-151.0,0.00022755,7]
[367825151,1750937265065,-820.672992,0.00022755,7]
[367825152,1750937265089,-820.672992,0.00022755,7]
[367825153,1750937265113,-151.0,0.00022755,7]
[367825154,1750937265138,-151.0,0.00022755,7]
[367825155,1750937265163,-263.660246,0.00022755,7]
[367825156,1750937265188,-151.0,0.00022755,7]
[367825157,1750937265213,-226.920011,0.00022755,7]
[367825158,1750937265238,-226.920011,0.00022755,7]
[367825159,1750937265262,-1000.0,0.0002276,5]
[367825160,1750937265287,-1000.0,0.0002278,5]
[367825161,1750937265311,-1721.010829,0.0002278,5]
[367825162,1750937265336,-483.81763402,0.000228,7]
[367825163,1750937265360,-10255.67054195,0.000228,7]
[367825164,1750937265384,-209545.94,0.000228,7]
[367825165,1750937265409,-1000.0,0.000228,5]
[367825166,1750937265436,-1000.0,0.000228,5]
[367825167,1750937265462,-1000.0,0.0002282,5]
[367825168,1750937265487,-1000.0,0.0002282,5]
[367825169,1750937265513,-1000.0,0.0002284,5]
[367825170,1750937265539,-1000.0,0.0002284,5]
[367825171,1750937265565,-395.0,0.00022852,5]
[367825172,1750937265590,-1685.0,0.00022853,5]
[367825173,1750937265625,-1693.0,0.00022853,5]
[367825174,1750937265651,-1685.0,0.00022853,5]
[367825175,1750937265676,-1685.0,0.00022853,5]
[367825176,1750937265702,-1685.0,0.00022853,5]
[367825177,1750937265727,-1685.0,0.00022853,5]
[367825178,1750937265752,-1685.0,0.00022853,5]
[367825179,1750937265777,-1685.0,0.00022853,5]
[367825180,1750937265801,-1685.0,0.00022853,5]
[367825181,1750937265829,-1685.0,0.00022853,5]
[367825182,1750937265854,-1000.0,0.0002286,5]
[367825183,1750937265879,-1000.0,0.0002286,5]
[367825184,1750937265905,-115149.76270202,0.0002287,7]
[367825185,1750937265929,-151.0,0.0002287,7]
[367825186,1750937265952,-183.436065,0.0002287,7]
[367825187,1750937265976,-151.0,0.0002287,7]
[367825188,1750937266000,-151.0,0.0002287,7]
[367825189,1750937266027,-151.0,0.0002287,7]
[367825190,1750937266051,-284.36487,0.0002287,7]
[367825191,1750937266076,-284.36487,0.0002287,7]
[367825192,1750937266101,-151.0,0.0002287,7]
[367825193,1750937266126,-151.0,0.0002287,7]
[367825194,1750937266153,-282.952214,0.0002287,7]
[367825195,1750937266325,-151.0,0.0002287,7]
[367825196,1750937266352,-151.0,0.0002287,7]
[367825197,1750937266377,-151.0,0.0002287,7]
[367825198,1750937266403,-151.0,0.0002287,7]
[367825199,1750937266429,-1500.0,0.0002287,14]
[367825200,1750937266456,-1500.0,0.0002287,14]
[367825201,1750937266481,-1500.0,0.0002287,14]
[367825202,1750937266507,-1500.0,0.0002287,14]
[367825203,1750937266533,-640.819661,0.0002287,14]
[367825204,1750937266560,-197.076694,0.0002287,7]
[367825205,1750937266587,-197.076694,0.0002287,7]
[367825206,1750937266613,-151.0,0.0002287,7]
[367825207,1750937266640,-820.672992,0.0002287,7]
[367825208,1750937266667,-820.672992,0.0002287,7]
[367825209,1750937266693,-151.0,0.0002287,7]
[367825210,1750937266720,-151.0,0.0002287,7]
[367825211,1750937266746,-151.0,0.0002287,7]
[367825212,1750937266771,-226.920011,0.0002287,7]
[367825213,1750937266797,-226.920011,0.0002287,7]
[367825214,1750937266824,-1000.0,0.0002288,5]
[367825215,1750937266848,-1000.0,0.0002288,5]
[367825216,1750937266874,-1258.39402512,0.00022898,15]
[367825217,1750937266901,-151.0,0.000229,7]
[367825218,1750937266926,-151.0,0.000229,7]
[367825219,1750937266951,-197.076694,0.000229,7]
[367825220,1750937266978,-197.076694,0.000229,7]
[367825221,1750937267002,-151.0,0.000229,7]
[367825222,1750937267026,-1000.0,0.000229,5]
[367825223,1750937267049,-1000.0,0.000229,5]
[367825224,1750937267073,-820.672992,0.000229,7]
[367825225,1750937267098,-820.672992,0.000229,7]
[367825226,1750937267121,-151.0,0.000229,7]
[367825227,1750937267146,-151.0,0.000229,7]
[367825228,1750937267170,-281.580233,0.000229,7]
[367825229,1750937267195,-226.920011,0.000229,7]
[367825230,1750937267219,-226.920011,0.000229,7]
[367825231,1750937267243,-151.0,0.00022913,7]
[367825232,1750937267266,-151.0,0.00022913,7]
[367825233,1750937267290,-151.0,0.00022913,7]
[367825234,1750937267313,-151.0,0.00022913,7]
[367825235,1750937267338,-284.36487,0.00022913,7]
[367825236,1750937267362,-284.36487,0.00022913,7]
[367825237,1750937267387,-151.0,0.00022913,7]
[367825238,1750937267412,-151.0,0.00022913,7]
[367825239,1750937267436,-282.952214,0.00022913,7]
[367825240,1750937267461,-151.0,0.00022913,7]
[367825241,1750937267485,-1000.0,0.0002292,5]
[367825242,1750937267510,-1000.0,0.0002292,5]
[367825243,1750937267534,-1000.0,0.0002294,5]
[367825244,1750937267560,-1000.0,0.0002294,5]
[367825245,1750937267584,-1000.0,0.0002296,5]
[367825246,1750937267608,-1000.0,0.0002296,5]
[367825247,1750937267639,-2242.70531674,0.00022969,8]
[367825248,1750937267664,-1000.0,0.0002298,5]
[367825249,1750937267689,-1000.0,0.0002298,5]
[367825250,1750937267713,-50000.0,0.00023,15]
[367825251,1750937267736,-294.89,0.00023,7]
[367825252,1750937267761,-500.0,0.00023,5]
[367825253,1750937267785,-500.0,0.00023,5]
[367825254,1750937267809,-500.0,0.00023,5]
[367825255,1750937267838,-500.0,0.00023,5]
[367825256,1750937267863,-500.0,0.00023,5]
[367825257,1750937267887,-500.0,0.00023,5]
[367825258,1750937267912,-500.0,0.00023,5]
[367825259,1750937267937,-500.0,0.00023,5]
[367825260,1750937267960,-500.0,0.00023,5]
[367825261,1750937267984,-500.0,0.00023,5]
[367825262,1750937268010,-2365.0,0.00023,7]
[367825263,1750937268034,-15666.58941069,0.00023,7]
[367825264,1750937268057,-7869.0,0.00023,5]
[367825265,1750937268083,-66373.97772821,0.00023,10]
[367825266,1750937268406,24900.0,0.00015687,2]
[367825267,1750937281810,-2000000.0,0.00025018,20]
[367825268,1750937286002,-2000000.0,0.00025018,20]
[367825269,1750937288565,-2000000.0,0.00025018,20]
[367825270,1750937292206,-2000000.0,0.00025018,20]
[367825314,1750937437688,-169.97704006,0.00016338,2]
[367825315,1750937437698,-1200.0,0.00016436,2]
[367825316,1750937437708,-300.0,0.00016437,2]
[367825317,1750937437718,-300.0,0.00016437,2]
[367825318,1750937437728,-300.0,0.00016437,2]
[367825319,1750937437739,-226.01840114,0.00016438,2]
[367825320,1750937437748,-354.91436063,0.00016438,2]
[367825321,1750937437760,-105.08563937,0.00016438,2]
[367825322,1750937437771,-455.93382381,0.00016438,2]
[367825323,1750937437798,-4.06617619,0.00016438,2]
[367825324,1750937437808,-460.0,0.00016438,2]
[367825325,1750937437818,-460.0,0.00016438,2]
[367825326,1750937437828,-460.0,0.00016438,2]
[367825327,1750937437838,-460.0,0.00016438,2]
[367825328,1750937437848,-460.0,0.00016438,2]
[367825329,1750937437858,-460.0,0.00016438,2]
[367825330,1750937437868,-460.0,0.00016438,2]
[367825332,1750937437877,-171.99487056,0.00016438,2]
[367825336,1750937437890,-288.00512944,0.00016438,2]
[367825339,1750937437900,-607.38072682,0.00016438,2]
[367825342,1750937437910,-460.0,0.00016438,2]
[367825345,1750937437919,-460.0,0.00016438,2]
[367825347,1750937437928,-460.0,0.00016438,2]
[367825349,1750937437938,-460.0,0.00016438,2]
[367825350,1750937437947,-460.0,0.00016438,2]
[367825351,1750937437956,-452.86724487,0.00016438,2]
[367825352,1750937437998,-7.13275513,0.00016438,2]
[367825353,1750937438008,-459.96654486,0.00016438,2]
[367825354,1750937438054,-0.03345514,0.00016438,2]
[367825355,1750937438065,-460.0,0.00016438,2]
[367825357,1750937438074,-6.50320708,0.00016438,2]
[367825364,1750937438342,-453.49679292,0.00016438,2]
[367825365,1750937438353,-460.0,0.00016438,2]
[367825366,1750937438364,-460.0,0.00016438,2]
[367825367,1750937438375,-460.0,0.00016438,2]
[367825368,1750937438386,-460.0,0.00016438,2]
[367825369,1750937438396,-460.0,0.00016438,2]
[367825370,1750937438405,-460.0,0.00016438,2]
[367825371,1750937438415,-460.0,0.00016438,2]
[367825372,1750937438425,-460.0,0.00016438,2]
[367825373,1750937438435,-460.0,0.00016438,2]
[367825374,1750937438444,-460.0,0.00016438,2]
[367825375,1750937438455,-460.0,0.00016438,2]
[367825376,1750937438465,-460.0,0.00016438,2]
[367825377,1750937438475,-460.0,0.00016438,2]
[367825378,1750937438484,-460.0,0.00016438,2]
[367825379,1750937438494,-460.0,0.00016438,2]
[367825380,1750937438503,-460.0,0.00016438,2]
[367825381,1750937438513,-460.0,0.00016438,2]
[367825382,1750937438524,-460.0,0.00016438,2]
[367825383,1750937438534,-460.0,0.00016438,2]
[367825384,1750937438544,-193.11497888,0.00016438,2]
[367825385,1750937438567,-282.56502112,0.00016438,2]
[367825387,1750937438577,-460.0,0.00016438,2]
[367825388,1750937438587,-460.0,0.00016438,2]
[367825389,1750937438597,-460.0,0.00016438,2]
[367825390,1750937438607,-165.0,0.00016438,2]
[367825391,1750937438618,-460.0,0.00016438,2]
[367825392,1750937438629,-460.0,0.00016438,2]
[367825393,1750937438640,-460.0,0.00016438,2]
[367825394,1750937438650,-460.0,0.00016438,2]
[367825395,1750937438660,-460.0,0.00016438,2]
[367825396,1750937438670,-460.0,0.00016438,2]
[367825397,1750937438680,-460.0,0.00016438,2]
[367825398,1750937438692,-799.04,0.00016438,2]
[367825399,1750937438703,-460.0,0.00016438,2]
[367825400,1750937438715,-460.0,0.00016438,2]
[367825401,1750937438727,-460.0,0.00016438,2]
[367825402,1750937438740,-460.0,0.00016438,2]
[367825403,1750937438751,-460.0,0.00016438,2]
[367825404,1750937438762,-460.0,0.00016438,2]
[367825405,1750937438772,-460.0,0.00016438,2]
[367825406,1750937438782,-460.0,0.00016438,2]
[367825407,1750937438792,-460.0,0.00016438,2]
[367825408,1750937438802,-460.0,0.00016438,2]
[367825409,1750937438812,-460.0,0.00016438,2]
[367825410,1750937438822,-460.0,0.00016438,2]
[367825411,1750937438832,-460.0,0.00016438,2]
[367825412,1750937438843,-460.0,0.00016438,2]
[367825413,1750937438852,-460.0,0.00016438,2]
[367825414,1750937438863,-460.0,0.00016438,2]
[367825415,1750937438873,-460.5,0.00016438,2]
[367825416,1750937438884,-460.0,0.00016438,2]
[367825417,1750937438895,-460.0,0.00016438,2]
[367825418,1750937439094,-460.0,0.00016438,2]
[367825419,1750937439104,-460.0,0.00016438,2]
[367825420,1750937439113,-460.0,0.00016438,2]
[367825421,1750937439122,-460.0,0.00016438,2]
[367825422,1750937439132,-460.0,0.00016438,2]
[367825423,1750937439141,-460.0,0.00016438,2]
[367825424,1750937439151,-460.0,0.00016438,2]
[367825425,1750937439160,-460.0,0.00016438,2]
[367825426,1750937439169,-460.0,0.00016438,2]
[367825427,1750937439178,-460.0,0.00016438,2]
[367825428,1750937439187,-460.0,0.00016438,2]
[367825429,1750937439197,-514.6,0.00016438,2]
[367825430,1750937439206,-460.0,0.00016438,2]
[367825431,1750937439215,-460.0,0.00016438,2]
[367825432,1750937439224,-460.0,0.00016438,2]
[367825433,1750937439233,-460.0,0.00016438,2]
[367825434,1750937439242,-460.0,0.00016438,2]
[367825435,1750937439251,-460.0,0.00016438,2]
[367825436,1750937439260,-460.0,0.00016438,2]
[367825437,1750937439269,-572.72,0.00016438,2]
[367825438,1750937439279,-460.0,0.00016438,2]
[367825439,1750937439288,-460.0,0.00016438,2]
[367825440,1750937439298,-1825.69,0.00016438,2]
[367825441,1750937439307,-183.89338991,0.00016438,2]
[367825442,1750937439317,-460.0,0.00016438,2]
[367825443,1750937439326,-460.0,0.00016438,2]
[367825444,1750937439335,-634.71,0.00016438,2]
[367825445,1750937439345,-460.0,0.00016438,2]
[367825446,1750937439355,-460.0,0.00016438,2]
[367825447,1750937439363,-560.37,0.00016438,2]
[367825448,1750937439373,-460.0,0.00016438,2]
[367825449,1750937439383,-532.05,0.00016438,2]
[367825450,1750937439392,-853.49,0.00016438,2]
[367825451,1750937439402,-749.37,0.00016438,2]
[367825452,1750937439411,-460.0,0.00016438,2]
[367825453,1750937439421,-460.0,0.00016438,2]
[367825454,1750937439430,-460.0,0.00016438,2]
[367825455,1750937439439,-750.66,0.00016438,2]
[367825456,1750937439449,-460.0,0.00016438,2]
[367825457,1750937439459,-493.63,0.00016438,2]
[367825458,1750937439468,-2230.64,0.00016438,2]
[367825459,1750937439477,-1483.5,0.00016438,2]
[367825460,1750937439486,-460.0,0.00016438,2]
[367825461,1750937439496,-460.0,0.00016438,2]
[367825462,1750937439506,-460.0,0.00016438,2]
[367825463,1750937439515,-154.46,0.00016438,2]
[367825464,1750937439525,-460.0,0.00016438,2]
[367825465,1750937439535,-631.3,0.00016438,2]
[367825466,1750937439544,-460.0,0.00016438,2]
[367825467,1750937439554,-460.0,0.00016438,2]
[367825468,1750937439564,-555.27,0.00016438,2]
[367825469,1750937439573,-469.21869622,0.00016438,2]
[367825470,1750937439583,-603.69,0.00016438,2]
[367825471,1750937439593,-1037.78,0.00016438,2]
[367825472,1750937439602,-480.66,0.00016438,2]
[367825473,1750937439611,-460.0,0.00016438,2]
[367825474,1750937439621,-460.0,0.00016438,2]
[367825475,1750937439631,-460.0,0.00016438,2]
[367825476,1750937439640,-460.0,0.00016438,2]
[367825477,1750937439649,-460.0,0.00016438,2]
[367825478,1750937439658,-460.0,0.00016438,2]
[367825479,1750937439667,-460.0,0.00016438,2]
[367825480,1750937439677,-1376.23,0.00016438,2]
[367825481,1750937439686,-460.0,0.00016438,2]
[367825482,1750937439696,-1547.65,0.00016438,2]
[367825483,1750937439705,-460.0,0.00016438,2]
[367825484,1750937439714,-1342.13,0.00016438,2]
[367825485,1750937439724,-460.0,0.00016438,2]
[367825486,1750937439734,-328.64622129,0.00016438,2]
[367825487,1750937439743,-460.0,0.00016438,2]
[367825488,1750937439752,-460.0,0.00016438,2]
[367825489,1750937439761,-460.0,0.00016438,2]
[367825490,1750937439771,-460.0,0.00016438,2]
[367825491,1750937439779,-460.0,0.00016438,2]
[367825492,1750937439790,-460.0,0.00016438,2]
[367825493,1750937439799,-460.0,0.00016438,2]
[367825494,1750937439808,-666.66,0.00016438,2]
[367825495,1750937439817,-460.0,0.00016438,2]
[367825496,1750937439827,-460.0,0.00016438,2]
[367825497,1750937439835,-460.0,0.00016438,2]
[367825498,1750937439847,-1051.88,0.00016438,2]
[367825499,1750937439856,-460.0,0.00016438,2]
[367825500,1750937439866,-584.27,0.00016438,2]
[367825501,1750937439877,-1471.85,0.00016438,2]
[367825502,1750937439886,-1058.47,0.00016438,2]
[367825503,1750937439896,-460.0,0.00016438,2]
[367825504,1750937439905,-460.0,0.00016438,2]
[367825505,1750937439914,-3674.9,0.00016438,2]
[367825506,1750937439923,-460.0,0.00016438,2]
[367825507,1750937439932,-488.35,0.00016438,2]
[367825508,1750937439942,-460.0,0.00016438,2]
[367825509,1750937439951,-460.0,0.00016438,2]
[367825510,1750937439960,-460.0,0.00016438,2]
[367825511,1750937439969,-460.0,0.00016438,2]
[367825512,1750937439978,-460.0,0.00016438,2]
[367825513,1750937439989,-460.0,0.00016438,2]
[367825514,1750937439999,-1781.52,0.00016438,2]
[367825516,1750937440008,-460.0,0.00016438,2]
[367825518,1750937440017,-765.93,0.00016438,2]
[367825519,1750937440027,-460.0,0.00016438,2]
[367825520,1750937440036,-460.0,0.00016438,2]
[367825521,1750937440045,-1905.24,0.00016438,2]
[367825522,1750937440055,-460.0,0.00016438,2]
[367825523,1750937440063,-1426.6,0.00016438,2]
[367825524,1750937440073,-460.0,0.00016438,2]
[367825526,1750937440082,-845.79,0.00016438,2]
[367825527,1750937440092,-460.0,0.00016438,2]
[367825528,1750937440101,-552.93,0.00016438,2]
[367825529,1750937440110,-460.0,0.00016438,2]
[367825530,1750937440119,-460.0,0.00016438,2]
[367825531,1750937440128,-3344.72,0.00016438,2]
[367825532,1750937440137,-460.0,0.00016438,2]
[367825533,1750937440146,-460.0,0.00016438,2]
[367825535,1750937440155,-460.0,0.00016438,2]
[367825537,1750937440165,-460.0,0.00016438,2]
[367825539,1750937440174,-460.0,0.00016438,2]
[367825540,1750937440184,-389.19801869,0.00016438,2]
[367825541,1750937440196,-460.0,0.00016438,2]
[367825542,1750937440206,-725.47,0.00016438,2]
[367825543,1750937440216,-681.48,0.00016438,2]
[367825544,1750937440227,-460.0,0.00016438,2]
[367825545,1750937440236,-460.0,0.00016438,2]
[367825546,1750937440245,-460.0,0.00016438,2]
[367825547,1750937440254,-460.0,0.00016438,2]
[367825549,1750937440263,-1451.19,0.00016438,2]
[367825551,1750937440273,-460.0,0.00016438,2]
[367825553,1750937440282,-2357.2,0.00016438,2]
[367825554,1750937440292,-460.0,0.00016438,2]
[367825556,1750937440301,-499.62,0.00016438,2]
[367825558,1750937440310,-500.0,0.00016438,2]
[367825560,1750937440319,-418.87558484,0.00016612,2]
[367825562,1750937440328,-2816.0,0.00016681,5]
[367825564,1750937440337,-2816.0,0.00016681,5]
[367825566,1750937440346,-1426.39306793,0.00016681,5]
[367825570,1750937440383,-1389.60693207,0.00016681,5]
[367825572,1750937440392,-2816.0,0.00016681,5]
[367825574,1750937440401,-2816.0,0.00016681,5]
[367825576,1750937440411,-2820.0,0.00016681,5]
[367825578,1750937440420,-395.0,0.00016681,5]
[367825580,1750937440429,-460.0,0.00016712,2]
[367825582,1750937440438,-460.0,0.00016712,2]
[367825584,1750937440448,-460.0,0.00016712,2]
[367825586,1750937440457,-590.91809254,0.00016712,2]
[367825588,1750937440467,-460.0,0.00016712,2]
[367825590,1750937440477,-460.0,0.00016712,2]
[367825592,1750937440486,-460.0,0.00016712,2]
[367825594,1750937440495,-460.0,0.00016712,2]
[367825596,1750937440505,-338.0502782,0.00016712,2]
[367825598,1750937440514,-530.08402479,0.00016712,2]
[367825600,1750937440523,-460.0,0.00016712,2]
[367825602,1750937440532,-460.0,0.00016712,2]
[367825604,1750937440542,-460.0,0.00016712,2]
[367825606,1750937440551,-460.0,0.00016712,2]
[367825608,1750937440560,-460.0,0.00016712,2]
[367825610,1750937440569,-460.0,0.00016712,2]
[367825612,1750937440578,-460.0,0.00016712,2]
[367825614,1750937440587,-460.0,0.00016712,2]
[367825616,1750937440597,-460.0,0.00016712,2]
[367825618,1750937440607,-460.0,0.00016712,2]
[367825620,1750937440616,-460.0,0.00016712,2]
[367825622,1750937440625,-460.0,0.00016712,2]